Cogmind - Beta 15 @@@ ROGUE MODE // 2025.05.07 @ 16:18:38 Player: gallo Result: Self-destructed Performance ------------- Evolutions (1) 500 Regions Visited (2) 400 Robots Destroyed (19) 95 Value Destroyed (481) 481 Prototype IDs (0) 0 Alien Tech Used (0) 0 Bonus (0) 0 TOTAL SCORE: 1476 Bonus ------- None Cogmind --------- Core Integrity 60/400 Matter 192/300 Energy 165/265 System Corruption 0% Temperature Cool (0) Movement Core (250) Ox4 Location -9/Materials Parts ------- > --- POWER (1) -------- Improved Ion Engine > --- PROPULSION (2) --- (None) > --- UTILITY (4) ------ Small Storage Unit Transport Network Coupler > --- WEAPON (2) ------- Autogun > --- INVENTORY (8) ---- Light Treads Light Treads Compact Wheel Medium Matter Pod (100) Medium Laser Grenade Launcher Peak State ------------ > --- POWER ------------ Light Ion Engine > --- PROPULSION ------- Wheel Wheel > --- UTILITY ---------- Small Storage Unit Seismic Detector Transport Network Coupler > --- WEAPON ----------- Medium Laser Mini Grenade Launcher > --- INVENTORY -------- Ion Engine Light Treads Light Treads Compact Wheel Medium Matter Pod EM Pulse Gun Medium Laser Grenade Launcher [Rating: 9] Favorites ----------- Power Ion Engine Engine Ion Engine Propulsion Wheel Wheel Wheel Utility Small Storage Unit Device Seismic Detector Storage Small Storage Unit Processor Transport Network Coupler Weapon Medium Laser Energy Gun Medium Laser Ballistic Gun Assault Rifle Launcher Mini Grenade Launcher Build | -11 -10 -9 ------- Run | Yrd Mat Mat Slots Evolved 2 | . . 2 Power . | . . . Propulsion . | . . . Utility 2 | . . 2 Weapon . | . . . Parts Attached 17 | 7 6 4 Power 3 | 1 1 1 Engine 3 | 1 1 1 Core . | . . . Reactor . | . . . Propulsion 3 | 2 1 . Treads . | . . . Leg . | . . . Wheel 3 | 2 1 . Hover . | . . . Flight . | . . . Utility 5 | 2 2 1 Device 2 | . 2 . Storage 2 | 2 . . Processor 1 | . . 1 Hackware . | . . . Protection . | . . . Artifact . | . . . Weapon 6 | 2 2 2 Energy Gun 3 | 1 2 . Energy Cannon . | . . . Ballistic Gun 2 | 1 . 1 Ballistic Cannon . | . . . Launcher 1 | . . 1 Special Weapon . | . . . Impact Weapon . | . . . Slashing Weapon . | . . . Piercing Weapon . | . . . Special Melee Weapon . | . . . Unidentified Prototypes . | . . . Parts Lost 10 | . 2 8 Power 2 | . . 2 Propulsion 2 | . . 2 Utility 2 | . 1 1 Weapon 4 | . 1 3 Highest Loss Streak 8 | . 2 8 To Critical Strikes . | . . . Average Backups 6 | 2 7 7 Power . | . 1 . Propulsion 2 | . 2 3 Utility 1 | . 1 1 Weapon 2 | . 2 2 Tool/Special . | . . . Unused Backups 5 | . . 5 Power . | . . . Propulsion 3 | . . 3 Utility 1 | . . 1 Weapon 1 | . . 1 Tool/Special . | . . . Average Slot Usage (%) 93 | . 97 77 Engine 13 | . 14 9 Wheel 26 | . 28 17 Device 9 | . 8 10 Storage 15 | . 16 11 Processor 1 | . . 10 Energy Gun 19 | . 20 12 Ballistic Gun 6 | . 7 . Launcher 1 | . . 6 Peak Build Rating 9 | 7 7 9 Average Rating 6 | 4 6 7 On Entrance 4 | . 7 7 Naked Turns . | . . . Heaviest Build 19 | 19 19 14 Greatest Support 26 | 26 26 20 Greatest Overweight (x) 4 | 3 . 4 Average Overweight (x) . | . . . Largest Inventory Capacity 8 | 8 8 8 Average Capacity 7 | 7 8 8 Most Carried 8 | 5 8 8 Average Carried 6 | 2 7 7 Final Capacity 8 | 8 8 8 Final Carried 8 | 4 8 6 Class Distribution -------------------- 100% | Mutant Dominant Class ---------------- Mutant | -10/Materials Mutant | -9/Materials Resources | -11 -10 -9 ----------- Run | Yrd Mat Mat Matter Collected 496 | 223 273 . Remotely . | . . . Salvage Created 689 | 88 441 160 Parts 34 | 3 23 8 Haulers Intercepted . | . . . Recyclers Shooed 1 | . 1 . Parts Field Recycled . | . . . Retrieved Matter . | . . . Parts Self-Destructed . | . . . Prevented . | . . . Kills | -11 -10 -9 ------- Run | Yrd Mat Mat Combat Hostiles Destroyed 13 | . 9 4 Guns 8 | . 8 . AOE 5 | . 1 4 Classes Destroyed 6 | 2 4 . Builder 2 | . 2 . Tunneler 1 | 1 . . Recycler 2 | 1 1 . Watcher 1 | . 1 . Swarmer 3 | . 3 . Grunt 10 | . 6 4 Best Kill Streak 4 | 1 4 4 Combat Bots Only 4 | . 3 4 Max Kills in Single Turn 4 | 1 2 4 Gunslinging . | . . . Exploded 4 | . 1 4 Melee . | . . . Uniques/NPCs Destroyed . | . . . Combat | -11 -10 -9 -------- Run | Yrd Mat Mat Hostile Shots Fired 113 | . 56 57 Missed 41 | . 18 23 Hits 72 | . 38 34 Melee 6 | . . 6 Projectile 66 | . 38 28 Critical Strikes 2 | . 1 1 Damage Taken 1192 | 15 460 717 Core 475 | 12 123 340 Absorbed by Shields . | . . . Core Remaining (%) 70 | 95 46 . Volleys Fired 61 | 4 44 13 Largest 2 | 2 2 2 Hottest 100 | 70 100 80 Shots Fired 109 | 8 82 19 Gun 101 | 8 82 11 Cannon . | . . . Launcher 8 | . . 8 Special . | . . . Kinetic 31 | 4 25 2 Thermal 48 | 4 36 8 Explosive 8 | . . 8 Electromagnetic 22 | . 21 1 Robot Hit Streak 9 | 3 9 3 Robot Miss Streak 5 | 1 5 3 Penetration Max . | . . . Secondary Targets 1 | . 1 . Max Gunslinging Chain 1 | . 1 . Shots Hit Robots 53 | 6 40 7 Core Hits 31 | 2 20 9 Critical Kills . | . . . Critical Parts Destroyed . | . . . Critical Strikes 4 | . 4 . Burn 4 | . 4 . Melee Attacks . | . . . Impact . | . . . Slashing . | . . . Piercing . | . . . Sneak Attacks . | . . . Combat Hostiles . | . . . Follow-up Attacks . | . . . Damage Inflicted 1227 | 86 665 476 Guns 631 | 80 494 57 Cannons . | . . . Explosions 563 | . 144 419 Melee . | . . . Ramming 33 | 6 27 . Kinetic 221 | 56 133 32 Thermal 433 | 24 384 25 Explosive 419 | . . 419 Electromagnetic 121 | . 121 . Impact . | . . . Slashing . | . . . Piercing . | . . . Highest Corruption . | . . . Average Corruption . | . . . Corruption Purged . | . . . Corruption Blocked . | . . . Overload Shots . | . . . Overflow Damage 69 | . . 69 Projectiles . | . . . Explosions 69 | . . 69 Melee . | . . . Knockbacks 1 | . 1 . Impact 1 | . 1 . Kinetic . | . . . Secondary . | . . . Self-Inflicted Damage 145 | 3 47 95 Shots 4 | . 1 3 Rammed 6 | 2 4 . Targets Rammed 6 | 2 4 . Kicked . | . . . Crushed . | . . . Highest Temperature 209 | 27 209 66 Average Temperature 68 | 12 83 26 Received Heat Transfer 375 | . 201 174 Effects 1 | . 1 . Interference 1 | . 1 . Siege Activations . | . . . Martial Activations . | . . . Shielding Activations . | . . . Robots Disrupted . | . . . Combat Hostiles . | . . . Robots Corrupted . | . . . Combat Hostiles . | . . . Parts Fried . | . . . Impact Corruptions . | . . . Robots Melted . | . . . Combat Hostiles . | . . . Parts Melted 5 | . 5 . Heat Transferred 1308 | 74 1160 74 Parts Sabotaged . | . . . Parts Stolen . | . . . Parts Stripped . | . . . Power Chain Reactions 2 | . 2 . Alert | -11 -10 -9 ------- Run | Yrd Mat Mat Maximum Alert Level . | . . . Low Security (%) 100 | 100 100 100 Level 1 . | . . . Level 2 . | . . . Level 3 . | . . . Level 4 . | . . . Level 5 . | . . . High Security . | . . . Max Security . | . . . Peak Influence 169 | 5 169 139 Initial 52 | . . 52 Average 56 | . 63 65 Influence Increases 506 | 10 323 173 Destroy 0b10 Robot/C 260 | . 180 80 Destroy 0b10 Robot/NC 30 | 10 20 . Destroy Leader 42 | . 32 10 Successful Hack 9 | . 9 . Disable Machine 60 | . 45 15 Destroy Structure 75 | . 7 68 Lose Combat Pursuer 30 | . 30 . Influence Decreases 411 | 10 198 203 Entered New Map 73 | . . 73 Time Decay 238 | 10 178 50 Lost Part 100 | . 20 80 Squads Dispatched 2 | . 1 1 Investigation 1 | . 1 . Extermination . | . . . Reinforcement 1 | . . 1 Assault . | . . . Garrison . | . . . Intercept . | . . . Searches Triggered . | . . . Construction Impeded . | . . . Haulers Reinforced . | . . . Active Scanning Responses . | . . . Cargo Convoy Interrupts . | . . . Stealth | -11 -10 -9 --------- Run | Yrd Mat Mat Distress Signals . | . . . Communications Jammed . | . . . Distress Signals . | . . . Times Spotted 23 | . 13 10 Peak Tracking Total 8 | . 5 8 Tactical Retreats 1 | . 1 . Traps | -11 -10 -9 ------- Run | Yrd Mat Mat Traps Triggered . | . . . Indirectly . | . . . Trap Hack Attempts . | . . . Triggered . | . . . Disarmed . | . . . Reprogrammed . | . . . Reused . | . . . Traps Extracted . | . . . Installed . | . . . Triggered . | . . . Machines | -11 -10 -9 ---------- Run | Yrd Mat Mat Machines Disabled 4 | . 3 1 Max in Single Turn 2 | . 2 1 Machines Repaired . | . . . Machines Dismantled . | . . . Machines Sabotaged . | . . . Overloaded Fab Kills . | . . . Hacking | -11 -10 -9 --------- Run | Yrd Mat Mat Machines Accessed 7 | . 6 1 Terminals 6 | . 5 1 Fabricators . | . . . Repair Stations . | . . . Recycling Units 1 | . 1 . Scanalyzers . | . . . Garrison Access . | . . . Total Hacks 20 | . 17 3 Successful 7 | . 5 2 Failed 13 | . 12 1 Catastrophic 1 | . 1 . Database Lockouts . | . . . Manual 21 | . 18 3 Terminals 19 | . 16 3 Fabricators . | . . . Repair Stations . | . . . Recycling Units 1 | . 1 . Scanalyzers . | . . . Garrison Access . | . . . Terminal Hacks 2 | . 1 1 Part Schematic 1 | . . 1 Branch Access Points 1 | . 1 . Fabricator Hacks . | . . . Repair Station Hacks . | . . . Recycling Unit Hacks . | . . . Scanalyzer . | . . . Garrison Access Hacks . | . . . Unauthorized Hacks 5 | . 4 1 Terminals 4 | . 3 1 Botnet 4 | . 3 1 Fabricators . | . . . Repair Stations . | . . . Recycling Units 1 | . 1 . Monitor 1 | . 1 . Scanalyzers . | . . . Garrison Access . | . . . Data Cores Recovered . | . . . Used . | . . . Hacking Detections 6 | . 5 1 Full Trace Events 2 | . 2 . Feedback Events . | . . . Feedback Blocked . | . . . Robot Schematics Acquired . | . . . Robots Built . | . . . Authchips . | . . . Time . | . . . Total Robot Build Rating . | . . . Part Schematics Acquired 1 | . . 1 Parts Built . | . . . Authchips . | . . . Time . | . . . Total Part Build Rating . | . . . Parts Repaired . | . . . Time . | . . . Parts Recycled . | . . . Recycled Matter . | . . . Retrieved Matter . | . . . Retrieved Components . | . . . Parts Scanalyzed . | . . . Part Schematics Acquired . | . . . Parts Damaged . | . . . Bothacking | -11 -10 -9 ------------ Run | Yrd Mat Mat Used RIF Installer . | . . . Robots Hacked . | . . . Non-combat . | . . . Combat . | . . . Robot Hacks Applied . | . . . Relay Couplers Released . | . . . Fabnet Peak Effective % . | . . . Robots Rewired . | . . . Allies Hacked . | . . . Hacks Repelled . | . . . Allies | -11 -10 -9 -------- Run | Yrd Mat Mat Total Allies . | . . . Largest Group . | . . . Highest-Rated Group . | . . . Highest-Rated Ally . | . . . Total Orders . | . . . Ally Attacks . | . . . Total Damage . | . . . Kills . | . . . Allies Corrupted . | . . . Allies Melted . | . . . Intel | -11 -10 -9 ------- Run | Yrd Mat Mat Active Infowar (turns) 453 | . 338 115 Structural 170 | . 170 . Seismic 267 | . 168 99 T.N.C. 109 | . . 109 Robot Analysis Total . | . . . Derelict Logs Recovered . | . . . Drone Launches . | . . . Drone Recoveries . | . . . Exploration | -11 -10 -9 ------------- Run | Yrd Mat Mat Turns Passed 736 | 89 532 115 Spaces Moved 566 | 66 411 89 Core 21 | 15 . 6 Treads . | . . . Legs . | . . . Wheels 545 | 51 411 83 Hover . | . . . Flight . | . . . Fastest Speed 50 | 50 80 80 Average Speed 85 | 90 85 83 Slowest Speed 250 | 200 90 250 Overloaded Moves . | . . . Propulsion Burnouts . | . . . Robots Hopped . | . . . Potential Cave-ins . | . . . Cave-ins Triggered . | . . . Exploration Rate (%) 26 | 3 60 16 Regions Visited 2 Branch Regions . Pre-discovered Areas . | . . . Known Exits Taken . | . . . Unknown Exits Taken 2 | 1 1 . Scrap Searched . | . . . Spaces Dug 13 | . . 13 Terrain Destroyed 73 | . 6 67 Melee . | . . . Projectile . | . . . AOE 73 | . 6 67 Terrain Rammed . | . . . Walls Destroyed . | . . . Machines Disabled . | . . . Actions | -11 -10 -9 --------- Run | Yrd Mat Mat Total 701 | 84 508 109 Wait 35 | . 35 . Move 564 | 65 410 89 Hop . | . . . Pick Up 13 | 6 6 1 Fast Attach 8 | 5 1 2 Attach 7 | 2 2 3 Detach . | . . . Swap 5 | . 4 1 Drop 2 | . 2 . Fire 61 | 4 44 13 Melee . | . . . Ram 6 | 2 4 . Kick . | . . . Crush . | . . . Escape Stasis . | . . . Rewire . | . . . Trap . | . . . Miscellaneous . | . . . Route ------- -11/Scrapyard -10/Materials (discovered 4 exits: *Mat x2 / *Min x2) -9/Materials History --------- Turn | Location | Event 3 | -11/Scrapyard | Discovered new exit (range 16) 90 | -11/Scrapyard | Entered Materials 214 | -10/Materials | Discovered new exit (range 12) 304 | -10/Materials | Build established: Mutant 468 | -10/Materials | Core integrity fell below 50% 528 | -10/Materials | Discovered new exit (range 6) 602 | -10/Materials | Discovered new exit (range 14) 618 | -10/Materials | Identified exit to Mines 622 | -10/Materials | Entered another Materials area 622 | -9/Materials | Evolved 2 slots: Utility x2 723 | -9/Materials | Core integrity fell below 50% 733 | -9/Materials | Core integrity fell below 20% 737 | -9/Materials | Self-destructed Last Messages --------------- station. 00693_ Backup Plating I tumbles out of repair station. 00694_ The unstable cave ceiling collapses. 00698_ G-34 Mercenary destroyed. 00698_ G-47 Trooper destroyed. 00698_ Critical hit (Burn: +37). 00704_ Ion Engine destroyed. 00706_ The unstable cave ceiling collapses. 00708_ Med. Laser destroyed. 00717_ EM Pulse Gun destroyed. 00721_ Destroyed Imp. Ion Engine. 00721_ Seismic Detector destroyed. 00721_ Destroyed Seismic Detector. 00722_ K-01 Serf collects debris. 00722_ Wheel destroyed. 00728_ Acquired Imp. Ion Engine. 00732_ Acquired Autogun. 00733_ K-01 Serf collects debris. 00736_ Mni. Grenade Launcher destroyed. Map ----- +----------------------------------------------------+ | ????????????????????????????? ??# #??????????? | | ?????????????????????????#???" ??# #??????????? | | ?????????????????????????+ """ !??# #?"????????? | | ?????????????????????????? """ ??# / "T???????? | | ??????????????????????????? #?# # "" ??????? | | ?????????????????????? ???## # ?# # ""???????? | | ??????????????????????#+### ?#=%[ ????????? | | ?????????????????????? ##*=% #######??? | | ?????????????????????? # % * ???? | | ??????????????????????? * ! """???? | | ????????????????????????"" * [ """"" #? | | ????????????????????????""" " ! """"" #? | | ?????????????????????????"" " [ """"" #? | | ????????????????????????????#""[ """ #? | | ????????????????????????????# ! # # #? | | ??????????????????????########+#### # #? | | ??????????????????????# # #??# ###+#######? | | ??????????????????????# # #??# ## #??????? | | ??????????????????????# #Y##? ## ##?????? | | ??????????????????????# # ## ####### | | ??????????????????????# ! | | ??????????????????????# * # Yg | | ??????????????????????# | | ??????????????????????# %] | | ??????????????????????# ! lm # #+ | | ??????????????????????# *@ # """ # # ] | | ??????????????????????# k # "T" # ####### | | ??????????????????????# # """ # #?????? | | ??????????????????????# Y # """ # ####### | | ??????????????????????# ###### """ # # | | ??????????????????????##?????# # # | | ?????????????????????????????# # # | | ?????????????????????????????# + # | | ?????????????????????????????########### + | | ???????????????????????????????????????# # | | ???????????????????????????????????????# # | | a??????????????????????????????????????# # | | ???????????????????????????????????????# # | | ???????????????????????????????????????# ####### | | ???????????????????????????????????????# #? """ | | ???????????????????????????????????????# #? """ | | ???????????????????????????????????????# # """ | | ???????????????????????????????????????# # | | ???????????????????????????????????????# + | | ???????????????????????????????????????# # | | ???????????????????????????????????????# # | | ???????????????????????????????????????# #? | | ???????????????????????????????????????# #?##### | | ???????????????????????????????????????# #?????? | | ???????????????????????????????????????# #?????? | +----------------------------------------------------+ Best States ------------- Heat Dissipation 28 Energy Generation 12 Energy Capacity 265 Matter Stores 300 Matter Capacity 300 Sight Range 16 Terrain Scan Density 10 Evasion (%) 44 Item Schematics ----------------- Hvy. EM Pulse Gun | -9/Materials | Hacked Robot Schematics ------------------ None Fabricated ------------ Nothing Repaired ---------- Nothing Alien Tech Used ----------------- None Achievements -------------- None Challenges ------------ None Game ------ Seed TechEnergyDriver Manual? 0 Play Time 00:11:52 Cumulative 10.2 hours Start 2025.05.07 @ 16:00:17 End 2025.05.07 @ 16:18:38 Sessions 1 Manual Loads 0 Difficulty Rogue Special Mode None Game No. 42 Rogue 42 Adventurer 0 Explorer 0 Win Type - Total 0 Types 0/0/0/0/0/0/0/0/0/0 Lore% 4 Gallery% 14 Achievement% 14 Wizard Run 0 Options --------- Layout 1 ASCII 0 Keyboard 1 Movement Numpad Keybinds 0 Fullscreen 1 Font 24/Smallcaps Map View 50x35 Zoom Use 0% Tactical HUD 1 Map Filters NONE Filters NONE Steam 1 RUN: e26277c0-7462-4d71-9355-749c9d376056